fUST/lending_fUST_20251008
["ID","MTS","AMOUNT","RATE_DAILY","PERIOD"]
[389989208,1759921848639,-1109.486862,0.00021369,7]
[389989209,1759921848649,-2852.31,0.00021369,2]
[389989210,1759921848658,-1109.486862,0.00021369,7]
[389989211,1759921848668,-1109.486862,0.00021369,7]
[389989212,1759921848677,-1109.486862,0.00021369,7]
[389989213,1759921848686,-1109.486862,0.00021369,7]
[389989214,1759921848698,-1109.486862,0.00021369,7]
[389989215,1759921848708,-1109.486862,0.00021369,7]
[389989216,1759921848718,-1392.25,0.00021369,2]
[389989217,1759921848728,-1109.486862,0.00021369,7]
[389989218,1759921848738,-1109.486862,0.00021369,7]
[389989219,1759921848748,-1109.486862,0.00021369,7]
[389989220,1759921848758,-1109.486862,0.00021369,7]
[389989221,1759921848769,-1109.486862,0.00021369,7]
[389989222,1759921848779,-1109.486869,0.00021369,7]
[389989223,1759921848789,-693.11,0.00021369,2]
[389989224,1759921848799,-500.0,0.00021369,2]
[389989225,1759921848809,-3956.66,0.00021369,2]
[389989226,1759921848819,-1642.29,0.00021369,2]
[389989227,1759921848830,-646.23,0.00021369,2]
[389989228,1759921848840,-474.12077266,0.00021369,2]
[389989229,1759921848849,-500.0,0.00021369,2]
[389989230,1759921848864,-250.62981531,0.00021369,2]
[389989231,1759921848874,-151.0,0.00021369,7]
[389989232,1759921848884,-151.0,0.00021369,7]
[389989233,1759921848893,-151.0,0.00021369,7]
[389989234,1759921848903,-151.0,0.00021369,7]
[389989235,1759921848913,-151.0,0.00021369,7]
[389989236,1759921848924,-155.393994,0.00021369,7]
[389989237,1759921848935,-1025.84,0.00021369,2]
[389989238,1759921848944,-500.0,0.00021369,2]
[389989239,1759921848954,-500.0,0.00021369,2]
[389989240,1759921848965,-500.0,0.00021369,2]
[389989241,1759921848976,-3051.87,0.00021369,2]
[389989242,1759921848986,-596.5,0.00021369,2]
[389989243,1759921848996,-151.0,0.00021369,7]
[389989244,1759921849007,-151.0,0.00021369,7]
[389989245,1759921849016,-552.353742,0.00021369,7]
[389989246,1759921849026,-151.0,0.00021369,7]
[389989247,1759921849036,-500.0,0.00021369,2]
[389989248,1759921849046,-552.353742,0.00021369,7]
[389989249,1759921849056,-151.0,0.00021369,7]
[389989250,1759921849066,-552.353742,0.00021369,7]
[389989251,1759921849076,-151.0,0.00021369,7]
[389989252,1759921849086,-552.353742,0.00021369,7]
[389989253,1759921849096,-151.0,0.00021369,7]
[389989254,1759921849106,-552.353742,0.00021369,7]
[389989255,1759921849116,-552.353742,0.00021369,7]
[389989256,1759921849125,-151.0,0.00021369,7]
[389989257,1759921849135,-552.353742,0.00021369,7]
[389989258,1759921849145,-500.0,0.00021369,2]
[389989259,1759921849155,-343.845341,0.00021369,7]
[389989260,1759921849167,-552.353742,0.00021369,7]
[389989261,1759921849380,-151.0,0.00021369,7]
[389989262,1759921849390,-343.845341,0.00021369,7]
[389989263,1759921849400,-552.353742,0.00021369,7]
[389989264,1759921849410,-151.0,0.00021369,7]
[389989265,1759921849420,-343.845341,0.00021369,7]
[389989266,1759921849431,-552.353742,0.00021369,7]
[389989267,1759921849440,-151.0,0.00021369,7]
[389989268,1759921849450,-343.845341,0.00021369,7]
[389989269,1759921849459,-552.353742,0.00021369,7]
[389989270,1759921849469,-3038.12,0.00021369,2]
[389989271,1759921849478,-151.0,0.00021369,7]
[389989272,1759921849488,-343.845341,0.00021369,7]
[389989273,1759921849497,-552.353742,0.00021369,7]
[389989274,1759921849507,-343.845341,0.00021369,7]
[389989275,1759921849516,-151.0,0.00021369,7]
[389989276,1759921849526,-552.353742,0.00021369,7]
[389989277,1759921849535,-153.338829,0.00021369,7]
[389989278,1759921849547,-151.0,0.00021369,7]
[389989279,1759921849557,-343.845341,0.00021369,7]
[389989280,1759921849567,-552.353742,0.00021369,7]
[389989281,1759921849577,-151.0,0.00021369,7]
[389989282,1759921849587,-235.838499,0.00021369,7]
[389989283,1759921849597,-343.845341,0.00021369,7]
[389989284,1759921849607,-552.353742,0.00021369,7]
[389989285,1759921849619,-343.845341,0.00021369,7]
[389989286,1759921849628,-552.353742,0.00021369,7]
[389989287,1759921849638,-552.353742,0.00021369,7]
[389989288,1759921849648,-343.845341,0.00021369,7]
[389989289,1759921849658,-552.353742,0.00021369,7]
[389989290,1759921849669,-552.353742,0.00021369,7]
[389989291,1759921849679,-343.845341,0.00021369,7]
[389989292,1759921849689,-552.353745,0.00021369,7]
[389989293,1759921849700,-343.845341,0.00021369,7]
[389989294,1759921849709,-343.845341,0.00021369,7]
[389989295,1759921849719,-343.845341,0.00021369,7]
[389989296,1759921849728,-151.0,0.00021369,7]
[389989297,1759921849738,-343.845341,0.00021369,7]
[389989298,1759921849749,-151.0,0.00021369,7]
[389989299,1759921849758,-343.845341,0.00021369,7]
[389989300,1759921849767,-151.0,0.00021369,7]
[389989301,1759921849777,-343.845341,0.00021369,7]
[389989302,1759921849787,-2049.27,0.00021369,2]
[389989303,1759921849797,-151.0,0.00021369,7]
[389989304,1759921849806,-343.845341,0.00021369,7]
[389989305,1759921849817,-343.845341,0.00021369,7]
[389989306,1759921849826,-151.0,0.00021369,7]
[389989307,1759921849836,-343.845345,0.00021369,7]
[389989308,1759921849845,-151.0,0.00021369,7]
[389989309,1759921849855,-151.0,0.00021369,7]
[389989310,1759921849864,-151.0,0.00021369,7]
[389989311,1759921849874,-214.146664,0.00021369,7]
[389989312,1759921849883,-1686.01,0.00021369,2]
[389989313,1759921849895,-424.27500569,0.00021369,2]
[389989314,1759921849914,-501.40964491,0.00021369,2]
[389989315,1759921849923,-777.87,0.00021369,2]
[389989316,1759921849934,-500.0,0.00021369,2]
[389989317,1759921849943,-193.722174,0.00021369,7]
[389989318,1759921849953,-500.0,0.00021369,2]
[389989319,1759921849962,-193.722174,0.00021369,7]
[389989320,1759921849972,-501.38241877,0.00021369,2]
[389989321,1759921849981,-193.722174,0.00021369,7]
[389989322,1759921849991,-193.722174,0.00021369,7]
[389989323,1759921850001,-193.722174,0.00021369,7]
[389989324,1759921850011,-270.53127,0.00021369,7]
[389989325,1759921850022,-193.722174,0.00021369,7]
[389989326,1759921850032,-270.53127,0.00021369,7]
[389989327,1759921850041,-193.722174,0.00021369,7]
[389989328,1759921850051,-1787.17,0.00021369,2]
[389989329,1759921850060,-270.53127,0.00021369,7]
[389989330,1759921850069,-193.722174,0.00021369,7]
[389989331,1759921850079,-270.53127,0.00021369,7]
[389989332,1759921850088,-193.722174,0.00021369,7]
[389989333,1759921850098,-270.53127,0.00021369,7]
[389989334,1759921850108,-193.722174,0.00021369,7]
[389989335,1759921850119,-270.53127,0.00021369,7]
[389989336,1759921850138,-193.722174,0.00021369,7]
[389989337,1759921850154,-270.53127,0.00021369,7]
[389989338,1759921850164,-402.00603937,0.00021369,2]
[389989339,1759921850174,-193.722174,0.00021369,7]
[389989340,1759921850185,-270.53127,0.00021369,7]
[389989341,1759921850195,-193.722174,0.00021369,7]
[389989342,1759921850206,-270.53127,0.00021369,7]
[389989343,1759921850217,-507.46758742,0.00021369,2]
[389989344,1759921850227,-193.722174,0.00021369,7]
[389989345,1759921850236,-270.53127,0.00021369,7]
[389989346,1759921850246,-193.722174,0.00021369,7]
[389989347,1759921850256,-270.53127,0.00021369,7]
[389989348,1759921850266,-193.722174,0.00021369,7]
[389989349,1759921850276,-1486.0,0.00021369,2]
[389989350,1759921850286,-270.53127,0.00021369,7]
[389989351,1759921850295,-270.53127,0.00021369,7]
[389989352,1759921850305,-500.0,0.00021369,2]
[389989353,1759921850314,-193.722174,0.00021369,7]
[389989354,1759921850324,-270.53127,0.00021369,7]
[389989355,1759921850333,-193.722174,0.00021369,7]
[389989356,1759921850343,-500.0,0.00021369,2]
[389989357,1759921850352,-193.722174,0.00021369,7]
[389989358,1759921850362,-270.53127,0.00021369,7]
[389989359,1759921850372,-193.722166,0.00021369,7]
[389989360,1759921850381,-270.53127,0.00021369,7]
[389989361,1759921850390,-500.0,0.00021369,2]
[389989362,1759921850400,-270.53127,0.00021369,7]
[389989363,1759921850411,-270.53127,0.00021369,7]
[389989364,1759921850421,-270.53127,0.00021369,7]
[389989365,1759921850430,-501.28325613,0.00021369,2]
[389989366,1759921850440,-270.531267,0.00021369,7]
[389989367,1759921850449,-1432.42,0.00021369,2]
[389989368,1759921850459,-5116.04,0.00021369,2]
[389989369,1759921850468,-570.73,0.00021369,2]
[389989370,1759921850478,-2676.8,0.00021369,2]
[389989371,1759921850487,-2311.32,0.00021369,2]
[389989372,1759921850497,-500.25376829,0.00021369,2]
[389989373,1759921850506,-3829.44,0.00021369,2]
[389989374,1759921850516,-8155.37,0.00021369,2]
[389989375,1759921850526,-2550.31,0.00021369,2]
[389989376,1759921850538,-9902.59,0.00021369,2]
[389989377,1759921850548,-502.5113985,0.00021369,2]
[389989378,1759921850558,-500.0,0.00021369,2]
[389989379,1759921850567,-500.0,0.00021369,2]
[389989380,1759921850579,-501.12586889,0.00021369,2]
[389989381,1759921850591,-500.0,0.00021369,2]
[389989382,1759921850600,-500.0,0.00021369,2]
[389989383,1759921850612,-500.0,0.00021369,2]
[389989384,1759921850622,-595.78,0.00021369,2]
[389989385,1759921850632,-1768.68,0.00021369,2]
[389989386,1759921850641,-500.0,0.00021369,2]
[389989387,1759921850651,-1160.72,0.00021369,2]
[389989388,1759921850660,-500.64854554,0.00021369,2]
[389989389,1759921850670,-500.0,0.00021369,2]
[389989390,1759921850679,-1341.17,0.00021369,2]
[389989391,1759921850689,-3691.34,0.00021369,2]
[389989392,1759921850698,-13817.46,0.00021369,2]
[389989393,1759921850708,-500.0,0.00021369,2]
[389989394,1759921850718,-500.0,0.00021369,2]
[389989395,1759921850728,-500.0,0.00021369,2]
[389989396,1759921850738,-1952.74,0.00021369,2]
[389989397,1759921850748,-151.0,0.00021369,7]
[389989398,1759921850757,-687.9,0.00021369,2]
[389989399,1759921850767,-500.0,0.00021369,2]
[389989400,1759921850777,-199.513076,0.00021369,7]
[389989401,1759921850791,-1917.81,0.00021369,2]
[389989402,1759921850801,-199.513076,0.00021369,7]
[389989403,1759921850812,-199.513076,0.00021369,7]
[389989404,1759921850824,-501.12144377,0.00021369,2]
[389989405,1759921850834,-500.0,0.00021369,2]
[389989406,1759921850844,-199.513076,0.00021369,7]
[389989407,1759921850854,-199.513076,0.00021369,7]
[389989408,1759921850865,-840.46,0.00021369,2]
[389989409,1759921850875,-199.513076,0.00021369,7]
[389989410,1759921850884,-199.513076,0.00021369,7]
[389989411,1759921850893,-199.513076,0.00021369,7]
[389989412,1759921850903,-199.513076,0.00021369,7]
[389989413,1759921850915,-199.513076,0.00021369,7]
[389989414,1759921850925,-199.513076,0.00021369,7]
[389989415,1759921850935,-500.0,0.00021369,2]
[389989416,1759921850944,-199.513076,0.00021369,7]
[389989417,1759921850954,-500.0,0.00021369,2]
[389989418,1759921850964,-199.513076,0.00021369,7]
[389989419,1759921850974,-9226.94,0.00021369,2]
[389989420,1759921850984,-199.513076,0.00021369,7]
[389989421,1759921850994,-199.513076,0.00021369,7]
[389989422,1759921851003,-199.513076,0.00021369,7]
[389989423,1759921851012,-199.513076,0.00021369,7]
[389989424,1759921851023,-1715.08,0.00021369,2]
[389989425,1759921851032,-199.513076,0.00021369,7]
[389989426,1759921851042,-151.0,0.00021369,7]
[389989427,1759921851052,-199.513076,0.00021369,7]
[389989428,1759921851062,-151.0,0.00021369,7]
[389989429,1759921851072,-199.5130742,0.00021369,7]
[389989430,1759921851081,-151.0,0.00021369,7]
[389989431,1759921851092,-151.0,0.00021369,7]
[389989432,1759921851102,-151.0,0.00021369,7]
[389989433,1759921851112,-151.0,0.00021369,7]
[389989434,1759921851121,-1027.8,0.00021369,2]
[389989435,1759921851131,-794.29,0.00021369,2]
[389989436,1759921851141,-151.0,0.00021369,7]
[389989437,1759921851151,-3940.25,0.00021369,2]
[389989438,1759921851161,-151.0,0.00021369,7]
[389989439,1759921851171,-274.224495,0.00021369,7]
[389989440,1759921851181,-500.0,0.00021369,2]
[389989441,1759921851190,-500.0,0.00021369,2]
[389989442,1759921851200,-500.0,0.00021369,2]
[389989443,1759921851209,-3520.86,0.00021369,2]
[389989444,1759921851219,-500.0,0.00021369,2]
[389989445,1759921851228,-11559.55,0.00021369,2]
[389989446,1759921851237,-3513.32,0.00021369,2]
[389989447,1759921851247,-2230.25,0.00021369,2]
[389989448,1759921851256,-500.0,0.00021369,2]
[389989449,1759921851266,-151.0,0.00021369,7]
[389989450,1759921851276,-500.0,0.00021369,2]
[389989451,1759921851285,-151.0,0.00021369,7]
[389989452,1759921851294,-151.0,0.00021369,7]
[389989453,1759921851304,-4897.47189895,0.00021369,2]
[389989454,1759921851756,153.0,7.9e-07,2]
[389989455,1759921851866,153.0,7.9e-07,2]
[389989456,1759921852016,-1365.1992255,0.00020496,2]
[389989457,1759921852026,-174.61414962,0.0002099,2]
[389989458,1759921852080,5000.0,0.00018,2]
[389989459,1759921852116,153.0,7.9e-07,2]
[389989460,1759921852181,153.0,7.9e-07,2]
[389989461,1759921852384,153.0,7.9e-07,2]
[389989462,1759921852398,-227.46969828,0.0002099,2]
[389989463,1759921852407,-312.54746523,0.00021369,2]
[389989464,1759921852788,-2515.62,0.00021369,2]
[389989465,1759921852799,-2136.29611235,0.00021369,2]
[389989466,1759921852891,-16774.81452347,0.00021369,2]
[389989467,1759921852901,-151.0,0.00021369,7]
[389989468,1759921852910,-151.0,0.00021369,7]
[389989469,1759921852919,-500.0,0.00021369,2]
[389989470,1759921852928,-151.0,0.00021369,7]
[389989471,1759921852937,-151.0,0.00021369,7]
[389989472,1759921852946,-151.0,0.00021369,7]
[389989473,1759921852955,-153.611137,0.00021369,7]
[389989474,1759921852965,-500.0,0.00021369,2]
[389989475,1759921852974,-304.66882393,0.00021369,2]
[389989476,1759921852983,-1587.28,0.00021369,2]
[389989477,1759921852993,-151.0,0.00021369,7]
[389989478,1759921853002,-586.93,0.00021369,2]
[389989479,1759921853011,-151.56807289,0.00021369,2]
[389989480,1759921853021,-151.0,0.00021369,7]
[389989481,1759921853031,-151.0,0.00021369,7]
[389989482,1759921853039,-151.0,0.00021369,7]
[389989483,1759921853048,-151.0,0.00021369,7]
[389989484,1759921853057,-909.49,0.00021369,2]
[389989485,1759921853067,-352.734217,0.00021369,7]
[389989486,1759921853076,-151.0,0.00021369,7]
[389989487,1759921853086,-1248.97,0.00021369,2]
[389989488,1759921853096,-352.734217,0.00021369,7]
[389989489,1759921853105,-1248.97,0.00021369,2]
[389989490,1759921853115,-352.734217,0.00021369,7]
[389989491,1759921853125,-151.0,0.00021369,7]
[389989492,1759921853136,-1248.97,0.00021369,2]
[389989493,1759921853146,-1248.97,0.00021369,2]
[389989494,1759921853156,-352.734217,0.00021369,7]
[389989495,1759921853165,-151.0,0.00021369,7]
[389989496,1759921853174,-1248.97,0.00021369,2]
[389989497,1759921853183,-352.734217,0.00021369,7]
[389989498,1759921853192,-163.413348,0.00021369,7]
[389989499,1759921853202,-1580.43863,0.00021369,7]
[389989500,1759921853211,-352.734217,0.00021369,7]
[389989501,1759921853222,-1580.43863,0.00021369,7]
[389989502,1759921853232,-1248.97,0.00021369,2]
[389989503,1759921853241,-352.734217,0.00021369,7]
[389989504,1759921853251,-500.0,0.00021369,2]
[389989505,1759921853261,-1248.97,0.00021369,2]
[389989506,1759921853272,-352.734217,0.00021369,7]
[389989507,1759921853281,-1580.43863,0.00021369,7]
[389989508,1759921853290,-1248.97,0.00021369,2]
[389989509,1759921853300,-352.734217,0.00021369,7]
[389989510,1759921853309,-1248.97,0.00021369,2]
[389989511,1759921853319,-1580.43863,0.00021369,7]
[389989512,1759921853329,-879.66,0.00021369,2]
[389989513,1759921853339,-352.734217,0.00021369,7]
[389989514,1759921853348,-220.31274187,0.00021369,2]
[389989515,1759921853388,-1028.65725813,0.00021369,2]
[389989516,1759921853398,-1580.43863,0.00021369,7]
[389989517,1759921853408,-414.29215324,0.00021369,2]
[389989518,1759921853418,-1248.97,0.00021369,2]
[389989519,1759921853428,-356.93671944,0.00021369,2]
[389989520,1759921853438,-1580.43863,0.00021369,7]
[389989521,1759921853448,-1248.97,0.00021369,2]
[389989522,1759921853458,-352.734217,0.00021369,7]
[389989523,1759921853468,-1580.43863,0.00021369,7]
[389989524,1759921853479,-1248.97,0.00021369,2]
[389989525,1759921853489,-352.734217,0.00021369,7]
[389989526,1759921853499,-1580.43863,0.00021369,7]
[389989527,1759921853509,-879.71356449,0.00021369,2]
[389989570,1759921961729,157.487858,0.0002352,30]
[389989571,1759921962130,157.487858,0.0002304,30]
[389989572,1759922050234,1291.80034382,0.000196,14]
[389989573,1759922058951,5000.0,0.000196,14]
[389989577,1759922172801,151.0,0.000181,2]
[389989578,1759922173710,151.0,0.00018183,2]
[389989579,1759922174166,151.0,0.00018225,2]
[389989580,1759922174683,151.0,0.00018266,2]
[389989581,1759922175218,151.0,0.00018308,2]
[389989582,1759922175628,151.0,0.00018141,2]
[389989583,1759922175698,151.0,0.0001835,2]
[389989584,1759922176179,151.0,0.00018391,2]
[389989585,1759922176684,151.0,0.00018433,2]
[389989586,1759922177178,151.0,0.00018475,2]
[389989587,1759922177858,151.0,0.00018516,2]
[389989588,1759922178197,151.0,0.00018558,2]
[389989589,1759922178695,151.0,0.000186,2]
[389989590,1759922179196,151.0,0.00018641,2]
[389989591,1759922179696,151.0,0.00018683,2]
[389989592,1759922180419,151.0,0.00018725,2]
[389989593,1759922180714,151.0,0.00018766,2]
[389989594,1759922181243,151.0,0.00018808,2]
[389989595,1759922181720,151.0,0.0001885,2]
[389989596,1759922182215,151.0,0.00018891,2]
[389989597,1759922182720,151.0,0.00018933,2]
[389989598,1759922232174,10000.0,0.00026,60]
[389989599,1759922269845,10000.0,0.00024,30]
[389989600,1759922278009,2440.02241874,0.000196,14]
[389989602,1759922450200,8148.64709,0.00028767,120]
[389989608,1759922682295,1081.0,0.00026,60]
[389989609,1759922738486,-151.0,0.00018975,2]
[389989610,1759922738516,-302.5453232,0.00018975,2]
[389989611,1759922738546,-151.0,0.00019016,2]
[389989612,1759922738576,-151.0,0.00019058,2]
[389989613,1759922738605,-151.0,0.000191,2]
[389989614,1759922738634,-500.0,0.00019547,2]
[389989615,1759922738662,-500.0,0.00019547,2]
[389989616,1759922738692,-500.0,0.00019547,2]
[389989617,1759922738723,-500.0,0.00019547,2]
[389989618,1759922738752,-500.0,0.00019547,2]
[389989619,1759922739012,-500.0,0.00019547,2]
[389989620,1759922739043,-347.92712168,0.00019575,2]
[389989621,1759922739074,-291.06511024,0.00019658,2]
[389989622,1759922740379,-908.93488976,0.00019658,2]
[389989623,1759922740406,-300.0,0.00019658,2]
[389989624,1759922740438,-937.45703548,0.00019865,2]
[389989625,1759922740559,-3465.16103928,0.00019865,2]
[389989626,1759922742984,-2242.06511024,0.00019865,2]
[389989627,1759922825123,-232.5753589,0.00019957,2]
[389989628,1759922825145,-300.0,0.00020074,2]
[389989629,1759922825165,-1315.43562224,0.00020075,2]
[389989630,1759922826173,-10000.01,0.00020075,2]
[389989631,1759922829262,-10000.01,0.00020075,2]
[389989633,1759922852107,-307.12927181,0.00020075,2]
[389989646,1759922879850,-910.72354179,0.00019874,2]
[389989647,1759922879884,-8178.56291642,0.00020075,2]
[389989648,1759922880113,-10000.01,0.00020075,2]
[389989649,1759922881763,-10000.01,0.00020075,2]
[389989653,1759922895015,1000.0,0.0001993,2]
[389989655,1759922914301,160.0,0.00020074,2]
[389989657,1759922923242,8840.01,0.00019,2]
[389989658,1759922923265,10000.01,0.00019,2]
[389989659,1759922924295,-319.1287145,0.00019,2]
[389989660,1759922924539,-638.257429,0.00019,2]
[389989661,1759922924658,-1276.514858,0.00019,2]
[389989662,1759922924696,-5532.207997,0.00019,2]
[389989663,1759922924780,-1914.772287,0.00019,2]
[389989664,1759922947124,-199.24333515,0.00019286,2]
[389989665,1759922947145,-757.52086485,0.00019286,2]
[389989709,1759923037933,-38.65550241,0.00019286,2]
[389989710,1759923037947,-77.24029759,0.00019286,2]
[389989711,1759923037958,-122.75970241,0.00019286,2]
[389989712,1759923037968,-137.13702275,0.00020174,2]
[389989753,1759923040124,-931.784668,0.00020174,2]
[389989755,1759923040134,-393.30892016,0.00020175,2]
[389989757,1759923040145,-398.1060885,0.00020274,2]
[389989759,1759923040155,-438.69071864,0.00020775,2]
[389989761,1759923040165,-300.0,0.00020899,2]
[389989763,1759923040174,-300.0,0.00020899,2]
[389989765,1759923040185,-1200.0,0.00020899,2]
[389989767,1759923040195,-239.70476835,0.000209,2]
[389989769,1759923040204,-2495.78109524,0.000209,2]
[389989771,1759923040221,-2500.0,0.000209,2]
[389989774,1759923040232,-3706.11890476,0.000209,2]
[389989775,1759923040241,-105.56035264,0.0002096,2]
[389989777,1759923040253,-54.43964736,0.0002096,2]
[389989779,1759923040262,-179.0,0.0002097,2]
[389989782,1759923040271,-606.00552751,0.00021068,7]
[389989784,1759923040292,-357.13359341,0.00021068,7]
[389989787,1759923040302,-10000.01,0.00021069,2]
[389989791,1759923040312,-239.70476835,0.000211,2]
[389989792,1759923040322,-1404.32810968,0.00021122,2]
[389989793,1759923040331,-500.0,0.00021184,2]
[389989794,1759923040341,-500.0,0.00021184,2]
[389989795,1759923040350,-517.42904288,0.00021184,2]
[389989796,1759923040359,-500.0,0.00021184,2]
[389989797,1759923040369,-500.0,0.00021184,2]
[389989798,1759923040379,-500.0,0.00021184,2]
[389989799,1759923040388,-500.0,0.00021184,2]
[389989800,1759923040397,-20231.00668058,0.00021185,2]
[389989801,1759923040407,-8701.9,0.000212,2]
[389989802,1759923040418,-402.0838479,0.00021264,2]
[389989803,1759923040427,-160.0,0.00021264,2]
[389989804,1759923040437,-160.0,0.00021264,2]
[389989805,1759923040447,-234.25206901,0.00021264,2]
[389989806,1759923040457,-160.0,0.00021265,2]
[389989807,1759923040466,-209.241,0.00021267,2]
[389989808,1759923040476,-10128.38142434,0.00021269,2]
[389989809,1759923040486,-2232.89204459,0.00021269,2]
[389989810,1759923040495,-239.70476835,0.000213,2]
[389989811,1759923040505,-151.0,0.00021356,2]
[389989812,1759923040514,-500.0,0.00021356,2]
[389989813,1759923040523,-500.0,0.00021356,2]
[389989814,1759923040533,-500.0,0.00021356,2]
[389989815,1759923040542,-500.0,0.00021356,2]
[389989816,1759923040553,-500.0,0.00021356,2]
[389989818,1759923040562,-500.0,0.00021356,2]
[389989820,1759923040571,-500.0,0.00021356,2]
[389989822,1759923040580,-18603.8837,0.00021356,2]
[389989824,1759923040593,-500.0,0.00021356,2]
[389989826,1759923040603,-351.45523641,0.00021356,2]
[389989828,1759923040612,-500.0,0.00021356,2]
[389989830,1759923040621,-500.0,0.00021356,2]
[389989832,1759923040630,-500.0,0.00021356,2]
[389989834,1759923040640,-500.0,0.00021356,2]
[389989836,1759923040650,-500.0,0.00021356,2]
[389989839,1759923040659,-500.0,0.00021356,2]
[389989841,1759923040668,-500.0,0.00021356,2]
[389989843,1759923040678,-500.0,0.00021356,2]
[389989845,1759923040687,-500.0,0.00021356,2]
[389989846,1759923040696,-500.0,0.00021356,2]
[389989849,1759923040706,-248.04596635,0.00021356,2]
[389989851,1759923040715,-259.94,0.00021359,3]
[389989853,1759923040725,-765.0,0.00021359,3]
[389989855,1759923040734,-175.57269617,0.00021359,3]
[389989857,1759923040744,-3755.28,0.00021359,3]
[389989859,1759923040753,-1877.64,0.00021359,3]
[389989861,1759923040763,-151.0,0.00021359,3]
[389989863,1759923040772,-938.82,0.00021359,3]
[389989865,1759923040781,-151.0,0.00021359,3]
[389989866,1759923040791,-151.0,0.00021359,3]
[389989868,1759923040802,-151.0,0.00021359,3]
[389989871,1759923040811,-500.0,0.00021359,3]
[389989873,1759923040821,-469.41,0.00021359,3]
[389989875,1759923040830,-234.7,0.00021359,3]
[389989876,1759923040840,-704.14,0.00021359,3]
[389989878,1759923040849,-500.0,0.00021369,2]
[389989880,1759923040859,-500.0,0.00021369,2]
[389989883,1759923040869,-500.0,0.00021369,2]
[389989885,1759923040878,-2714.13,0.00021369,2]
[389989887,1759923040887,-2714.13,0.00021369,2]
[389989889,1759923040896,-304.49621896,0.00021369,2]
[389989891,1759923040906,-500.0,0.00021369,2]
[389989893,1759923040914,-865.91,0.00021369,2]
[389989895,1759923040923,-1212.06,0.00021369,2]
[389989897,1759923040932,-520.0,0.00021369,3]
[389989899,1759923040941,-500.0,0.00021369,2]
[389989901,1759923040951,-500.0,0.00021369,2]
[389989903,1759923040960,-500.0,0.00021369,2]
[389989905,1759923040969,-500.0,0.00021369,2]
[389989907,1759923040979,-500.0,0.00021369,2]
[389989909,1759923040988,-500.49759704,0.00021369,2]
[389989911,1759923040997,-500.0,0.00021369,2]
[389989913,1759923041005,-500.0,0.00021369,2]
[389989915,1759923041014,-146.73480588,0.00021369,2]
[389990421,1759923046182,-500.0,0.00021369,2]
[389990423,1759923046193,-500.0,0.00021369,2]
[389990425,1759923046202,-500.0,0.00021369,2]
[389990427,1759923046211,-500.0,0.00021369,2]
[389990429,1759923046221,-500.0,0.00021369,2]
[389990431,1759923046229,-500.0,0.00021369,2]
[389990434,1759923046239,-500.0,0.00021369,2]
[389990437,1759923046248,-500.0,0.00021369,2]
[389990439,1759923046257,-500.0,0.00021369,2]
[389990441,1759923046266,-500.0,0.00021369,2]
[389990442,1759923046275,-463.84878143,0.00021369,2]
[389990444,1759923046284,-680.22,0.00021369,2]
[389990446,1759923046293,-500.0,0.00021369,2]
[389990448,1759923046303,-500.0,0.00021369,2]
[389990450,1759923046312,-500.0,0.00021369,2]